[Event "MČR v rapid šachu družstev 2019"]
[Site "Teplice, Czech Republic"]
[Date "2019.09.15"]
[Round "2.19"]
[White "Zima, Jan"]
[Black "Strasil, Pavel"]
[Result "0-1"]
[TimeControl "15 min. + 5s"]
[WhiteElo "1971"]
[BlackElo "2097"]

1. e4 {[%clk 00:15:08]} {[%emt 00:00:02]} e6 {[%clk 00:15:10]} {[%emt
00:00:01]} 2. d4 {[%clk 00:15:11]} {[%emt 00:00:02]} d5 {[%clk 00:15:14]} 3. e5
{[%clk 00:15:15]} {[%emt 00:00:01]} c5 {[%clk 00:15:18]} 4. c3 {[%clk
00:15:19]} {[%emt 00:00:02]} Nc6 {[%clk 00:15:19]} {[%emt 00:00:03]} 5. Nf3
{[%clk 00:15:22]} {[%emt 00:00:02]} Bd7 {[%clk 00:15:23]} 6. Be2 {[%clk
00:15:25]} {[%emt 00:00:02]} Rc8 {[%clk 00:14:57]} {[%emt 00:00:31]} 7. O-O
{[%clk 00:15:05]} {[%emt 00:00:24]} cxd4 {[%clk 00:14:54]} {[%emt 00:00:08]} 8.
cxd4 {[%clk 00:15:08]} {[%emt 00:00:02]} Nge7 {[%clk 00:14:55]} {[%emt
00:00:04]} 9. Nc3 {[%clk 00:14:54]} {[%emt 00:00:19]} Ng6 {[%clk 00:14:47]}
{[%emt 00:00:14]} 10. Be3 {[%clk 00:13:22]} {[%emt 00:01:36]} Be7 {[%clk
00:14:46]} {[%emt 00:00:06]} 11. Qd2 {[%clk 00:13:08]} {[%emt 00:00:21]} O-O
{[%clk 00:14:38]} {[%emt 00:00:12]} 12. a3 {[%clk 00:12:44]} {[%emt 00:00:30]}
Na5 {[%clk 00:14:30]} {[%emt 00:00:12]} 13. Rad1 {[%clk 00:10:39]} {[%emt
00:02:10]} Nc4 {[%clk 00:12:16]} {[%emt 00:02:18]} 14. Bxc4 {[%clk 00:10:23]}
{[%emt 00:00:22]} Rxc4 {[%clk 00:11:57]} {[%emt 00:00:24]} 15. Qd3 {[%clk
00:07:24]} {[%emt 00:03:04]} Qb6 {[%clk 00:11:24]} {[%emt 00:00:38]} 16. Bc1
{[%clk 00:04:36]} {[%emt 00:02:52]} Rfc8 {[%clk 00:10:29]} {[%emt 00:01:00]} 17.
Ne2 {[%clk 00:01:59]} {[%emt 00:02:43]} Bb5 {[%clk 00:08:55]} {[%emt 00:01:39]}
18. Qe3 {[%clk 00:02:02]} {[%emt 00:00:02]} Rc2 {[%clk 00:08:34]} {[%emt
00:00:25]} 19. Rfe1 {[%clk 00:02:06]} Bxe2 {[%clk 00:08:01]} {[%emt 00:00:38]}
20. Rxe2 {[%clk 00:02:10]} {[%emt 00:00:01]} Qb5 {[%clk 00:07:45]} {[%emt
00:00:22]} 21. Rxc2 {[%clk 00:01:40]} {[%emt 00:00:35]} Rxc2 {[%clk 00:07:47]}
{[%emt 00:00:03]} 22. g3 {[%clk 00:01:23]} {[%emt 00:00:21]} a5 {[%clk
00:06:29]} {[%emt 00:01:23]} 23. Ne1 {[%clk 00:00:57]} {[%emt 00:00:31]} Rc8
{[%clk 00:06:11]} {[%emt 00:00:23]} 24. b3 {[%clk 00:00:41]} {[%emt 00:00:22]}
Bf8 {[%clk 00:03:38]} {[%emt 00:02:37]} 25. Bb2 {[%clk 00:00:36]} {[%emt
00:00:10]} Ne7 {[%clk 00:03:33]} {[%emt 00:00:11]} 26. Rc1 {[%clk 00:00:17]}
{[%emt 00:00:24]} Rxc1 27. Bxc1 {[%clk 00:00:21]} Nc6 {[%clk 00:03:31]} {[%emt
00:00:10]} 28. Nc2 {[%clk 00:00:16]} {[%emt 00:00:10]} a4 {[%clk 00:03:28]}
{[%emt 00:00:08]} 29. b4 {[%clk 00:00:19]} {[%emt 00:00:01]} Qc4 {[%clk
00:03:27]} {[%emt 00:00:06]} 30. Qd2 {[%clk 00:00:16]} {[%emt 00:00:08]} Na7
{[%clk 00:03:26]} {[%emt 00:00:06]} 31. Bb2 {[%clk 00:00:17]} {[%emt 00:00:05]}
Nb5 {[%clk 00:03:22]} {[%emt 00:00:09]} 32. Ne3 {[%clk 00:00:21]} {[%emt
00:00:01]} Qb3 {[%clk 00:03:13]} {[%emt 00:00:14]} 33. Qc2 {[%clk 00:00:11]}
{[%emt 00:00:15]} Qxc2 {[%clk 00:03:07]} {[%emt 00:00:11]} 34. Nxc2 {[%clk
00:00:15]} f6 {[%clk 00:03:09]} {[%emt 00:00:03]} 35. f4 {[%clk 00:00:18]}
{[%emt 00:00:02]} Be7 {[%clk 00:03:10]} {[%emt 00:00:04]} 36. Kf2 {[%clk
00:00:11]} {[%emt 00:00:11]} Bd8 {[%clk 00:03:13]} {[%emt 00:00:02]} 37. Ke3
{[%clk 00:00:14]} {[%emt 00:00:02]} Kf7 {[%clk 00:03:18]} 38. Ne1 {[%clk
00:00:15]} {[%emt 00:00:05]} fxe5 {[%clk 00:03:17]} {[%emt 00:00:05]} 39. fxe5
{[%clk 00:00:17]} {[%emt 00:00:03]} Kg6 {[%clk 00:03:15]} {[%emt 00:00:07]} 40.
Nf3 {[%clk 00:00:18]} {[%emt 00:00:05]} Kf5 {[%clk 00:03:12]} {[%emt 00:00:08]}
41. h3 {[%clk 00:00:20]} {[%emt 00:00:02]} h5 {[%clk 00:03:15]} {[%emt
00:00:02]} 42. Kd3 {[%clk 00:00:12]} {[%emt 00:00:14]} Bg5 {[%clk 00:03:13]}
{[%emt 00:00:06]} 43. Ne1 {[%emt 00:00:13]} 0-1

[Event "MČR v rapid šachu družstev 2019"]
[Site "Teplice, Czech Republic"]
[Date "2019.09.15"]
[Round "2.20"]
[White "Krejci, Jan"]
[Black "Broucek, Tomas"]
[Result "1/2-1/2"]
[TimeControl "15 min. + 5s"]
[WhiteElo "2496"]
[BlackElo "2063"]

1. Nf3 {[%clk 00:15:07]} {[%emt 00:00:02]} d6 {[%clk 00:15:07]} {[%emt
00:00:03]} 2. d4 {[%clk 00:15:10]} {[%emt 00:00:02]} Nd7 {[%clk 00:15:03]}
{[%emt 00:00:10]} 3. c4 {[%clk 00:15:02]} {[%emt 00:00:13]} e5 {[%clk
00:14:54]} {[%emt 00:00:14]} 4. e4 {[%clk 00:14:53]} {[%emt 00:00:14]} Ngf6
{[%clk 00:14:54]} {[%emt 00:00:06]} 5. Nc3 {[%clk 00:14:47]} {[%emt 00:00:11]}
c6 {[%clk 00:14:54]} {[%emt 00:00:05]} 6. Be2 {[%clk 00:14:17]} {[%emt
00:00:34]} Qc7 {[%clk 00:14:47]} {[%emt 00:00:12]} 7. O-O {[%clk 00:14:14]}
{[%emt 00:00:08]} Be7 {[%clk 00:14:50]} {[%emt 00:00:03]} 8. h3 {[%clk
00:14:16]} {[%emt 00:00:03]} h6 {[%clk 00:14:53]} {[%emt 00:00:02]} 9. Be3
{[%clk 00:14:16]} {[%emt 00:00:04]} g5 {[%clk 00:14:43]} {[%emt 00:00:15]} 10.
Nh2 {[%clk 00:13:43]} {[%emt 00:00:37]} Nf8 {[%clk 00:13:22]} {[%emt 00:01:27]}
11. b4 {[%clk 00:13:07]} {[%emt 00:00:41]} Ng6 {[%clk 00:12:33]} {[%emt
00:00:54]} 1/2-1/2

[Event "MČR v rapid šachu družstev 2019"]
[Site "Teplice, Czech Republic"]
[Date "2019.09.15"]
[Round "2.21"]
[White "Docekal, Jan"]
[Black "Soural, Jan"]
[Result "0-1"]
[TimeControl "15 min. + 5s"]
[WhiteElo "2302"]
[BlackElo "2121"]

1. e4 {[%clk 00:15:08]} {[%emt 00:00:03]} c5 {[%clk 00:15:08]} {[%emt
00:00:02]} 2. Nf3 {[%clk 00:15:11]} {[%emt 00:00:01]} Nc6 {[%clk 00:15:12]}
{[%emt 00:00:02]} 3. c4 {[%clk 00:15:12]} {[%emt 00:00:04]} g6 {[%clk
00:15:01]} {[%emt 00:00:16]} 4. d4 {[%clk 00:15:16]} {[%emt 00:00:02]} cxd4
{[%clk 00:15:04]} {[%emt 00:00:01]} 5. Nxd4 {[%clk 00:15:19]} {[%emt 00:00:01]}
Bg7 {[%clk 00:14:06]} {[%emt 00:01:04]} 6. Be3 {[%clk 00:15:23]} {[%emt
00:00:01]} Nf6 {[%clk 00:14:10]} 7. Nc3 {[%clk 00:15:27]} d6 {[%clk 00:14:13]}
{[%emt 00:00:03]} 8. Be2 {[%clk 00:15:26]} {[%emt 00:00:06]} O-O {[%clk
00:14:16]} {[%emt 00:00:02]} 9. O-O {[%clk 00:15:29]} {[%emt 00:00:02]} Bd7
{[%clk 00:14:20]} {[%emt 00:00:02]} 10. f3 {[%clk 00:15:18]} {[%emt 00:00:16]}
Nxd4 {[%clk 00:14:08]} {[%emt 00:00:17]} 11. Bxd4 {[%clk 00:15:21]} {[%emt
00:00:01]} a5 {[%clk 00:14:08]} {[%emt 00:00:04]} 12. b3 {[%clk 00:15:23]}
{[%emt 00:00:04]} Bc6 {[%clk 00:14:11]} {[%emt 00:00:02]} 13. Qd2 {[%clk
00:15:27]} {[%emt 00:00:01]} Nd7 {[%clk 00:14:14]} {[%emt 00:00:02]} 14. Be3
{[%clk 00:15:31]} {[%emt 00:00:01]} Nc5 {[%clk 00:14:13]} {[%emt 00:00:05]} 15.
Rac1 {[%clk 00:15:30]} {[%emt 00:00:07]} Qb6 {[%clk 00:14:03]} {[%emt
00:00:15]} 16. Nb5 {[%clk 00:15:24]} {[%emt 00:00:10]} Rfc8 {[%clk 00:13:41]}
{[%emt 00:00:27]} 17. Kh1 {[%clk 00:15:05]} {[%emt 00:00:25]} Qd8 {[%clk
00:13:33]} {[%emt 00:00:13]} 18. Nd4 {[%clk 00:15:04]} {[%emt 00:00:06]} h5
{[%clk 00:12:14]} {[%emt 00:01:24]} 19. Rfd1 {[%clk 00:14:48]} {[%emt
00:00:21]} Kh7 {[%clk 00:12:12]} {[%emt 00:00:07]} 20. Bd3 {[%clk 00:14:10]}
{[%emt 00:00:43]} Qf8 {[%clk 00:11:46]} {[%emt 00:00:30]} 21. Nxc6 {[%clk
00:13:50]} {[%emt 00:00:26]} Rxc6 {[%clk 00:11:44]} {[%emt 00:00:07]} 22. Bc2
{[%clk 00:13:46]} {[%emt 00:00:09]} e5 {[%clk 00:09:58]} {[%emt 00:01:51]} 23.
a3 {[%clk 00:13:13]} {[%emt 00:00:39]} Ne6 {[%clk 00:09:57]} {[%emt 00:00:05]}
24. Bd3 {[%clk 00:12:40]} {[%emt 00:00:38]} Bh6 {[%clk 00:09:12]} {[%emt
00:00:49]} 25. b4 {[%clk 00:11:42]} {[%emt 00:01:04]} axb4 {[%clk 00:08:11]}
{[%emt 00:01:06]} 26. axb4 {[%clk 00:11:45]} {[%emt 00:00:02]} Nd4 {[%clk
00:08:15]} {[%emt 00:00:02]} 27. Rb1 {[%clk 00:09:36]} {[%emt 00:02:14]} Bxe3
{[%clk 00:06:47]} {[%emt 00:01:32]} 28. Qxe3 {[%clk 00:09:39]} {[%emt
00:00:02]} Ra3 {[%clk 00:06:51]} {[%emt 00:00:01]} 29. f4 {[%clk 00:09:01]}
{[%emt 00:00:44]} Rxc4 {[%clk 00:06:22]} {[%emt 00:00:33]} 30. Qf2 {[%clk
00:07:46]} {[%emt 00:01:20]} Rcc3 {[%clk 00:06:09]} {[%emt 00:00:18]} 31. Bf1
{[%clk 00:07:49]} {[%emt 00:00:01]} Qe7 {[%clk 00:04:20]} {[%emt 00:01:54]} 32.
Rbc1 {[%clk 00:07:41]} {[%emt 00:00:14]} Qc7 {[%clk 00:03:36]} {[%emt
00:00:49]} 33. Rxc3 {[%clk 00:04:48]} {[%emt 00:02:59]} Rxc3 {[%clk 00:03:40]}
34. h3 {[%clk 00:04:29]} {[%emt 00:00:23]} Kg7 {[%clk 00:03:40]} {[%emt
00:00:05]} 35. f5 {[%clk 00:04:11]} {[%emt 00:00:23]} Rc2 {[%clk 00:03:10]}
{[%emt 00:00:35]} 36. Qh4 {[%clk 00:02:28]} {[%emt 00:01:48]} Rc1 {[%clk
00:03:13]} {[%emt 00:00:03]} 37. Re1 {[%clk 00:01:54]} {[%emt 00:00:38]} Qc3
{[%clk 00:02:58]} {[%emt 00:00:19]} 38. Rxc1 {[%clk 00:01:36]} {[%emt
00:00:24]} Qxc1 {[%clk 00:03:03]} 39. Kg1 {[%clk 00:01:40]} {[%emt 00:00:02]}
Qe3+ {[%clk 00:01:13]} {[%emt 00:01:54]} 40. Kh1 {[%clk 00:01:45]} Qf4 {[%clk
00:00:40]} {[%emt 00:00:37]} 41. Qxf4 {[%clk 00:01:38]} {[%emt 00:00:14]} exf4
{[%clk 00:00:44]} 42. fxg6 fxg6 {[%clk 00:00:48]} 43. Kg1 {[%clk 00:01:31]}
{[%emt 00:00:14]} Kf6 {[%clk 00:00:46]} {[%emt 00:00:07]} 44. Kf2 {[%clk
00:01:35]} Ke5 {[%emt 00:00:05]} 45. Bd3 g5 {[%clk 00:00:51]} {[%emt 00:00:01]}
46. g3 {[%clk 00:01:37]} {[%emt 00:00:08]} b6 {[%clk 00:00:31]} {[%emt
00:00:25]} 47. Kg2 {[%clk 00:01:17]} {[%emt 00:00:26]} Nb3 {[%clk 00:00:17]}
{[%emt 00:00:19]} 48. Be2 {[%clk 00:01:12]} {[%emt 00:00:09]} h4 {[%clk
00:00:13]} {[%emt 00:00:08]} 49. gxh4 {[%clk 00:01:16]} {[%emt 00:00:02]} gxh4
{[%clk 00:00:18]} 50. Bc4 {[%clk 00:00:44]} {[%emt 00:00:37]} Nd2 {[%clk
00:00:19]} {[%emt 00:00:04]} 51. Bd3 {[%clk 00:00:49]} Nxe4 {[%clk 00:00:19]}
{[%emt 00:00:04]} 52. Kf3 {[%clk 00:00:53]} Nf6 {[%clk 00:00:22]} {[%emt
00:00:01]} 53. Bb1 {[%clk 00:00:48]} {[%emt 00:00:11]} d5 {[%clk 00:00:26]}
{[%emt 00:00:01]} 54. Bc2 {[%clk 00:00:50]} {[%emt 00:00:03]} d4 {[%clk
00:00:22]} {[%emt 00:00:09]} 55. Bd3 {[%clk 00:00:55]} {[%emt 00:00:01]} Nd5
{[%clk 00:00:22]} {[%emt 00:00:04]} 56. b5 {[%clk 00:00:53]} {[%emt 00:00:07]}
Ne3 {[%clk 00:00:25]} {[%emt 00:00:01]} 57. Be4 {[%clk 00:00:55]} {[%emt
00:00:05]} Nd1 {[%clk 00:00:20]} {[%emt 00:00:09]} 58. Bd3 {[%clk 00:00:57]}
{[%emt 00:00:04]} Nb2 {[%clk 00:00:24]} {[%emt 00:00:01]} 59. Bc2 {[%clk
00:00:24]} {[%emt 00:00:37]} d3 {[%clk 00:00:26]} {[%emt 00:00:03]} 60. Bb3
{[%clk 00:00:29]} d2 {[%clk 00:00:29]} {[%emt 00:00:02]} 61. Ke2 {[%clk
00:00:33]} d1=Q+ {[%clk 00:00:32]} {[%emt 00:00:02]} 62. Bxd1 {[%clk 00:00:37]}
{[%emt 00:00:01]} Nxd1 {[%clk 00:00:36]} {[%emt 00:00:01]} 63. Kxd1 {[%clk
00:00:41]} {[%emt 00:00:01]} Ke4 {[%clk 00:00:39]} {[%emt 00:00:02]} 64. Ke2
{[%clk 00:00:46]} f3+ {[%emt 00:00:05]} 65. Kf2 Kf4 {[%clk 00:00:43]} 66. Ke1
{[%emt 00:00:13]} 0-1

[Event "MČR v rapid šachu družstev 2019"]
[Site "Teplice, Czech Republic"]
[Date "2019.09.15"]
[Round "2.22"]
[White "Vokoun, Jan"]
[Black "Serrano, Salvador Eduardo"]
[Result "1/2-1/2"]
[TimeControl "15 min. + 5s"]
[WhiteElo "2119"]
[BlackElo "2350"]

1. d4 {[%clk 00:15:09]} {[%emt 00:00:07]} d5 {[%clk 00:15:12]} {[%emt
00:00:02]} 2. Nf3 {[%clk 00:15:03]} {[%emt 00:00:11]} Nf6 {[%clk 00:15:13]}
{[%emt 00:00:04]} 3. e3 {[%clk 00:14:59]} {[%emt 00:00:08]} c6 {[%clk
00:14:54]} {[%emt 00:00:25]} 4. Bd3 {[%clk 00:14:57]} {[%emt 00:00:07]} Bg4
{[%clk 00:14:56]} {[%emt 00:00:03]} 5. h3 {[%clk 00:14:36]} {[%emt 00:00:26]}
Bh5 {[%clk 00:14:59]} {[%emt 00:00:02]} 6. Nbd2 {[%clk 00:14:35]} {[%emt
00:00:05]} e6 {[%clk 00:15:01]} {[%emt 00:00:03]} 7. O-O {[%clk 00:14:25]}
{[%emt 00:00:16]} Be7 {[%clk 00:14:36]} {[%emt 00:00:29]} 8. Re1 {[%clk
00:13:21]} {[%emt 00:01:10]} O-O {[%clk 00:14:36]} {[%emt 00:00:05]} 9. c3
{[%clk 00:13:02]} {[%emt 00:00:25]} Nbd7 {[%clk 00:14:29]} {[%emt 00:00:11]} 10.
b4 {[%clk 00:12:37]} {[%emt 00:00:30]} e5 {[%clk 00:14:18]} {[%emt 00:00:15]}
11. dxe5 {[%clk 00:10:20]} {[%emt 00:02:22]} Nxe5 {[%clk 00:14:19]} {[%emt
00:00:05]} 12. Be2 {[%clk 00:10:24]} {[%emt 00:00:01]} Nxf3+ {[%clk 00:13:30]}
{[%emt 00:00:53]} 13. Bxf3 {[%clk 00:10:18]} {[%emt 00:00:12]} Bxf3 {[%clk
00:13:30]} {[%emt 00:00:05]} 14. Nxf3 {[%clk 00:09:55]} {[%emt 00:00:27]} Ne4
{[%clk 00:13:31]} {[%emt 00:00:04]} 15. Qb3 {[%clk 00:09:54]} {[%emt 00:00:06]}
Bf6 {[%clk 00:13:26]} {[%emt 00:00:11]} 16. Bb2 {[%clk 00:09:57]} {[%emt
00:00:02]} Qb6 {[%clk 00:12:35]} {[%emt 00:00:56]} 17. Rab1 {[%clk 00:09:13]}
{[%emt 00:00:49]} a5 {[%emt 00:03:39]} 18. bxa5 {[%clk 00:06:55]} Qxa5 {[%clk
00:11:04]} {[%emt 00:00:24]} 19. c4 {[%clk 00:05:06]} {[%emt 00:01:54]} Nc5
{[%clk 00:07:54]} {[%emt 00:03:14]} 20. Qc2 {[%clk 00:04:20]} {[%emt 00:00:50]}
Qxa2 {[%clk 00:07:32]} {[%emt 00:00:28]} 21. cxd5 {[%clk 00:03:52]} {[%emt
00:00:34]} Na4 {[%clk 00:07:29]} {[%emt 00:00:08]} 22. dxc6 {[%clk 00:03:09]}
{[%emt 00:00:48]} bxc6 {[%clk 00:06:48]} {[%emt 00:00:45]} 23. Nd4 {[%clk
00:02:48]} {[%emt 00:00:27]} c5 {[%clk 00:06:48]} {[%emt 00:00:04]} 24. Ba1
{[%clk 00:02:33]} {[%emt 00:00:20]} Qxc2 {[%clk 00:05:59]} {[%emt 00:00:55]} 25.
Nxc2 {[%clk 00:02:37]} Bxa1 {[%clk 00:06:01]} {[%emt 00:00:03]} 26. Rxa1 {[%clk
00:02:13]} {[%emt 00:00:29]} g6 {[%clk 00:05:36]} {[%emt 00:00:30]} 27. e4
{[%clk 00:02:09]} {[%emt 00:00:09]} Nc3 {[%clk 00:05:20]} {[%emt 00:00:22]} 28.
e5 {[%clk 00:01:53]} {[%emt 00:00:21]} Rxa1 {[%clk 00:05:06]} {[%emt 00:00:18]}
29. Rxa1 {[%clk 00:01:55]} {[%emt 00:00:03]} Re8 {[%clk 00:05:01]} {[%emt
00:00:10]} 30. Re1 {[%clk 00:01:42]} {[%emt 00:00:18]} Rd8 {[%clk 00:04:40]}
{[%emt 00:00:26]} 31. Ne3 {[%clk 00:01:32]} {[%emt 00:00:15]} h5 {[%clk
00:04:33]} {[%emt 00:00:12]} 32. g3 {[%clk 00:01:27]} {[%emt 00:00:11]} Rd2
{[%clk 00:04:23]} {[%emt 00:00:14]} 33. Nc4 {[%clk 00:01:13]} {[%emt 00:00:20]}
Ra2 {[%clk 00:04:11]} {[%emt 00:00:17]} 34. Nd6 {[%clk 00:00:56]} {[%emt
00:00:21]} Kf8 {[%clk 00:03:18]} {[%emt 00:00:58]} 35. e6 {[%clk 00:00:36]}
{[%emt 00:00:26]} fxe6 {[%clk 00:03:17]} {[%emt 00:00:06]} 36. Rxe6 {[%clk
00:00:40]} Kg7 {[%clk 00:03:12]} {[%emt 00:00:09]} 37. Re1 {[%clk 00:00:32]}
{[%emt 00:00:13]} Rd2 {[%clk 00:02:09]} {[%emt 00:01:08]} 38. Nc4 {[%clk
00:00:26]} {[%emt 00:00:11]} Rd4 {[%clk 00:02:10]} {[%emt 00:00:04]} 39. Ne5
{[%clk 00:00:21]} {[%emt 00:00:09]} Kf6 {[%clk 00:02:08]} {[%emt 00:00:08]} 40.
Kf1 {[%clk 00:00:17]} {[%emt 00:00:11]} Ne4 {[%clk 00:01:42]} {[%emt 00:00:30]}
41. Nf3 {[%clk 00:00:19]} {[%emt 00:00:03]} Nd2+ {[%clk 00:01:45]} {[%emt
00:00:02]} 42. Nxd2 {[%clk 00:00:19]} {[%emt 00:00:05]} Rxd2 {[%clk 00:01:49]}
43. Re8 {[%clk 00:00:22]} {[%emt 00:00:02]} c4 {[%clk 00:01:48]} {[%emt
00:00:07]} 44. Rc8 {[%clk 00:00:25]} {[%emt 00:00:01]} Rc2 {[%clk 00:01:51]}
{[%emt 00:00:01]} 45. Rc5 {[%clk 00:00:25]} {[%emt 00:00:06]} c3 {[%clk
00:01:53]} {[%emt 00:00:03]} 46. Kg2 {[%clk 00:00:28]} {[%emt 00:00:02]} g5
{[%clk 00:01:39]} {[%emt 00:00:18]} 47. Kf3 {[%clk 00:00:30]} {[%emt 00:00:03]}
Rc1 {[%clk 00:01:35]} {[%emt 00:00:10]} 48. h4 {[%clk 00:00:20]} {[%emt
00:00:16]} g4+ {[%clk 00:00:55]} {[%emt 00:00:44]} 49. Kf4 {[%clk 00:00:23]}
{[%emt 00:00:02]} Rc2 {[%clk 00:00:43]} {[%emt 00:00:17]} 50. Rc6+ {[%clk
00:00:26]} {[%emt 00:00:02]} Ke7 {[%clk 00:00:42]} {[%emt 00:00:06]} 51. Kg5
{[%clk 00:00:29]} {[%emt 00:00:02]} Kd7 {[%clk 00:00:31]} {[%emt 00:00:16]} 52.
Rc4 {[%clk 00:00:33]} {[%emt 00:00:02]} Rxf2 {[%clk 00:00:12]} {[%emt
00:00:24]} 53. Rxc3 {[%clk 00:00:20]} {[%emt 00:00:17]} Rf3 {[%clk 00:00:15]}
{[%emt 00:00:01]} 54. Rc1 {[%clk 00:00:23]} Rxg3 {[%clk 00:00:19]} {[%emt
00:00:02]} 55. Kxh5 {[%clk 00:00:27]} Ke6 {[%clk 00:00:23]} {[%emt 00:00:02]}
56. Kg5 {[%clk 00:00:26]} {[%emt 00:00:06]} Kf7 {[%clk 00:00:21]} {[%emt
00:00:07]} 57. Rc7+ {[%clk 00:00:20]} {[%emt 00:00:11]} Kf8 {[%clk 00:00:25]}
{[%emt 00:00:02]} 58. Rc4 {[%clk 00:00:24]} Rg1 {[%clk 00:00:26]} {[%emt
00:00:03]} 59. Rxg4 {[%clk 00:00:10]} {[%emt 00:00:03]} 1/2-1/2

[Event "MČR v rapid šachu družstev 2019"]
[Site "Teplice, Czech Republic"]
[Date "2019.09.15"]
[Round "2.23"]
[White "Filipi, Stepan"]
[Black "Postupa, Martin"]
[Result "1-0"]
[TimeControl "15 min. + 5s"]
[WhiteElo "2210"]
[BlackElo "1950"]

1. e4 {[%clk 00:15:09]} e5 {[%clk 00:15:10]} {[%emt 00:00:01]} 2. Nf3 {[%clk
00:15:11]} {[%emt 00:00:02]} Nc6 {[%clk 00:15:13]} {[%emt 00:00:02]} 3. Bb5
{[%clk 00:15:13]} {[%emt 00:00:04]} d6 {[%clk 00:15:17]} {[%emt 00:00:01]} 4.
d4 {[%clk 00:15:14]} {[%emt 00:00:03]} exd4 {[%clk 00:15:21]} {[%emt 00:00:01]}
5. Nxd4 {[%clk 00:15:17]} {[%emt 00:00:03]} Bd7 {[%clk 00:15:25]} 6. Bxc6
{[%clk 00:15:14]} {[%emt 00:00:07]} bxc6 {[%clk 00:15:29]} 7. c4 {[%clk
00:15:16]} {[%emt 00:00:03]} c5 {[%clk 00:15:30]} {[%emt 00:00:04]} 8. Ne2
{[%clk 00:15:06]} {[%emt 00:00:15]} Bc6 {[%clk 00:15:30]} {[%emt 00:00:05]} 9.
Nbc3 {[%clk 00:15:08]} {[%emt 00:00:03]} g6 {[%clk 00:15:32]} {[%emt 00:00:03]}
10. O-O {[%clk 00:14:35]} {[%emt 00:00:37]} Bg7 {[%clk 00:15:33]} {[%emt
00:00:05]} 11. Qc2 {[%clk 00:14:02]} {[%emt 00:00:38]} Ne7 {[%clk 00:15:33]}
{[%emt 00:00:05]} 12. Bg5 {[%clk 00:13:12]} {[%emt 00:00:55]} O-O {[%clk
00:15:31]} {[%emt 00:00:08]} 13. Rad1 {[%clk 00:13:05]} {[%emt 00:00:11]} f6
{[%clk 00:15:28]} {[%emt 00:00:08]} 14. Be3 {[%clk 00:10:50]} {[%emt 00:02:20]}
Qb8 {[%clk 00:15:23]} {[%emt 00:00:10]} 15. Nf4 {[%clk 00:09:52]} {[%emt
00:01:03]} Qc8 {[%clk 00:15:08]} {[%emt 00:00:20]} 16. h3 {[%clk 00:09:33]}
{[%emt 00:00:23]} f5 {[%clk 00:14:23]} {[%emt 00:00:51]} 17. exf5 {[%clk
00:07:39]} {[%emt 00:01:59]} Nxf5 {[%clk 00:14:24]} {[%emt 00:00:05]} 18. Nfd5
{[%clk 00:07:14]} {[%emt 00:00:29]} Re8 {[%clk 00:14:15]} {[%emt 00:00:14]} 19.
Bg5 {[%clk 00:06:10]} {[%emt 00:01:10]} h6 {[%clk 00:14:13]} {[%emt 00:00:07]}
20. Bc1 {[%clk 00:05:55]} {[%emt 00:00:19]} Kh7 {[%clk 00:13:32]} {[%emt
00:00:46]} 21. Rde1 {[%clk 00:05:16]} {[%emt 00:00:45]} Qd7 {[%clk 00:13:32]}
{[%emt 00:00:03]} 22. Qd3 {[%clk 00:04:42]} {[%emt 00:00:40]} Bxd5 {[%clk
00:13:13]} {[%emt 00:00:24]} 23. Nxd5 {[%clk 00:04:44]} {[%emt 00:00:04]} Qf7
{[%clk 00:12:15]} {[%emt 00:01:02]} 24. b3 {[%clk 00:03:51]} {[%emt 00:00:58]}
Bd4 {[%clk 00:12:15]} {[%emt 00:00:05]} 25. Be3 {[%clk 00:03:22]} {[%emt
00:00:34]} c6 {[%clk 00:11:57]} {[%emt 00:00:23]} 26. Bxd4 {[%clk 00:02:46]}
{[%emt 00:00:41]} Nxd4 {[%clk 00:11:47]} {[%emt 00:00:15]} 27. Rxe8 {[%clk
00:02:44]} {[%emt 00:00:08]} Rxe8 {[%clk 00:11:47]} {[%emt 00:00:05]} 28. Ne3
{[%clk 00:02:48]} Qf4 {[%clk 00:11:13]} {[%emt 00:00:38]} 29. Ng4 {[%clk
00:02:17]} {[%emt 00:00:37]} h5 {[%clk 00:11:00]} {[%emt 00:00:18]} 30. Ne3
{[%clk 00:01:56]} {[%emt 00:00:26]} Qg5 {[%clk 00:10:50]} {[%emt 00:00:13]} 31.
Nc2 {[%clk 00:01:56]} {[%emt 00:00:07]} Ne2+ {[%clk 00:10:38]} {[%emt
00:00:18]} 32. Kh1 {[%clk 00:01:55]} {[%emt 00:00:05]} Nf4 {[%clk 00:10:36]}
{[%emt 00:00:06]} 33. Qf3 {[%clk 00:01:44]} {[%emt 00:00:17]} d5 {[%clk
00:08:48]} {[%emt 00:01:53]} 34. g3 {[%clk 00:01:39]} {[%emt 00:00:10]} Ne6
{[%clk 00:08:45]} {[%emt 00:00:08]} 35. h4 {[%clk 00:01:31]} {[%emt 00:00:14]}
Qd2 {[%clk 00:08:02]} {[%emt 00:00:47]} 36. cxd5 {[%clk 00:01:20]} {[%emt
00:00:17]} Ng7 {[%clk 00:07:41]} {[%emt 00:00:25]} 37. Ne3 {[%clk 00:01:18]}
{[%emt 00:00:07]} Qc3 {[%clk 00:06:38]} {[%emt 00:01:08]} 38. dxc6 {[%clk
00:01:06]} {[%emt 00:00:18]} Nf5 {[%clk 00:06:05]} {[%emt 00:00:37]} 39. c7
{[%clk 00:01:08]} {[%emt 00:00:04]} Nd6 {[%clk 00:04:46]} {[%emt 00:01:22]} 40.
Rd1 {[%clk 00:00:49]} {[%emt 00:00:25]} Qe5 {[%clk 00:03:59]} {[%emt 00:00:52]}
41. Rxd6 {[%emt 00:00:23]} 1-0